bitfinex/quotes_SOLUSD_20241105
["timestamp","ask_amount","ask_price","bid_price","bid_amount"]
[1730787062646,120.008184,160.48,160.47,0.3090675]
[1730787062836,120.108184,160.48,160.47,0.3090675]
[1730787063047,96.2313,160.48,160.47,0.3090675]
[1730787066361,6.2313,160.48,160.47,0.3090675]
[1730787066543,6.2313,160.48,160.47,12.15557601]
[1730787067358,6.2309,160.49,160.47,12.15557601]
[1730787067536,6.2309,160.49,160.48,11.84650851]
[1730787068051,6.2309,160.49,160.47,12.15557601]
[1730787068759,6.2301,160.51,160.47,12.15557601]
[1730787069066,6.2301,160.51,160.48,11.84650851]
[1730787069569,70.0,160.5,160.48,11.84650851]
[1730787069863,6.2301,160.51,160.48,11.84650851]
[1730787070100,6.2301,160.51,160.49,11.84650851]
[1730787070562,6.2301,160.51,160.5,11.84650851]
[1730787070744,6.2297,160.53,160.5,11.84650851]
[1730787070940,6.2297,160.53,160.52,11.84650851]
[1730787071148,6.2297,160.53,160.51,11.84650851]
[1730787073668,6.2285,160.55,160.52,11.84650851]
[1730787074855,6.2285,160.55,160.49,28.26040851]
[1730787074856,81.84650851,160.54,160.49,28.26040851]
[1730787075056,81.84650851,160.54,160.49,11.84650851]
[1730787075269,20.0,160.53,160.48,11.84650851]
[1730787075470,20.0,160.53,160.49,11.84650851]
[1730787075878,70.0,160.54,160.5,11.84650851]
[1730787076591,6.2285,160.55,160.52,11.84650851]
[1730787076779,6.2285,160.55,160.48,47.38603404]
[1730787076780,6.2285,160.55,160.53,11.84650851]
[1730787076975,6.2285,160.55,160.54,11.84650851]
[1730787078160,26.2278,160.57,160.54,11.84650851]
[1730787084884,26.2278,160.57,160.55,11.84650851]
[1730787085098,6.2278,160.57,160.55,11.84650851]
[1730787088390,6.2278,160.57,160.54,11.84650851]
[1730787092795,6.2278,160.57,160.53,11.84650851]
[1730787098096,6.2278,160.57,160.54,11.84650851]
[1730787098486,6.2278,160.57,160.51,16.5601]
[1730787098487,6.2278,160.57,160.55,11.84650851]
[1730787099197,6.2278,160.57,160.56,11.84650851]
[1730787102701,6.2278,160.57,160.51,22.7902]
[1730787102911,6.2278,160.57,160.55,11.84650851]
[1730787109418,6.2278,160.57,160.54,11.84650851]
[1730787110507,6.2278,160.57,160.51,16.5601]
[1730787110699,70.0,160.56,160.49,15.5772]
[1730787110899,81.84650851,160.56,160.51,11.84650851]
[1730787111515,6.2285,160.55,160.51,11.84650851]
[1730787111889,6.2285,160.55,160.5,11.84650851]
[1730787112412,6.2285,160.55,160.51,11.84650851]
[1730787114409,6.2285,160.55,160.47,23.0097675]
[1730787114410,11.84650851,160.53,160.48,11.84650851]
[1730787114609,81.84650851,160.52,160.47,12.15557601]
[1730787114912,70.0,160.49,160.47,0.3090675]
[1730787115408,81.84650851,160.49,160.47,0.3090675]
[1730787116110,41.85469251,160.48,160.47,0.3090675]
[1730787116307,62.33116251,160.48,160.47,0.3090675]
[1730787116893,68.47166251,160.48,160.47,0.3090675]
[1730787119617,68.09519251,160.48,160.47,0.3090675]
[1730787120001,68.47166251,160.48,160.47,0.3090675]
[1730787120201,68.09519251,160.48,160.47,0.3090675]
[1730787125228,70.0,160.45,160.41,11.84650851]
[1730787126400,6.2328,160.44,160.41,11.84650851]
[1730787129303,6.2328,160.44,160.42,11.84650851]
[1730787130724,6.2328,160.44,160.43,11.84650851]
[1730787131129,70.0,160.47,160.43,11.84650851]
[1730787131303,70.0,160.47,160.44,11.84650851]
[1730787131635,70.0,160.47,160.44,1.84650851]
[1730787133029,70.0,160.49,160.46,11.84650851]
[1730787133528,70.0,160.49,160.45,11.84650851]
[1730787135506,76.2312,160.49,160.45,11.84650851]
[1730787136916,70.0,160.47,160.44,11.84650851]
[1730787137735,70.0,160.47,160.45,11.84650851]
[1730787138231,6.232,160.46,160.45,11.84650851]
[1730787138632,6.232,160.46,160.44,11.84650851]
[1730787138835,6.232,160.46,160.41,6.2339]
[1730787138836,6.232,160.46,160.45,11.84650851]
[1730787139339,6.232,160.46,160.44,11.84650851]
[1730787139736,6.232,160.46,160.45,11.84650851]
[1730787140141,6.232,160.46,160.44,11.84650851]
[1730787143739,6.232,160.46,160.39,15.9958675]
[1730787144054,6.232,160.46,160.44,11.84650851]
[1730787144516,6.232,160.46,160.43,11.84650851]
[1730787144717,6.232,160.46,160.4,6.2344]
[1730787144917,6.232,160.46,160.44,11.84650851]
[1730787151846,6.232,160.46,160.39,22.2303675]
[1730787152144,6.232,160.46,160.42,11.84650851]
[1730787155518,6.232,160.46,160.4,6.2342]
[1730787155919,6.232,160.46,160.41,11.84650851]
[1730787156120,70.0,160.45,160.39,0.3090675]
[1730787156330,70.0,160.43,160.39,0.3090675]
[1730787156536,6.2336,160.42,160.39,0.3090675]
[1730787166245,6.2336,160.42,160.39,12.15557601]
[1730787166656,26.2328,160.44,160.41,11.84650851]
[1730787167640,26.2328,160.44,160.4,11.84650851]
[1730787168147,26.2328,160.44,160.39,0.3090675]
[1730787168355,26.2328,160.44,160.4,11.84650851]
[1730787169663,26.2328,160.44,160.39,12.15557601]
[1730787170161,26.2328,160.44,160.4,11.84650851]
[1730787171242,26.2328,160.44,160.39,12.15557601]
[1730787172356,26.2328,160.44,160.39,0.3090675]
[1730787172563,70.0,160.42,160.39,0.3090675]
[1730787173463,70.0,160.42,160.39,12.15557601]
[1730787173756,76.2328,160.44,160.4,11.84650851]
[1730787173958,76.2328,160.44,160.41,11.84650851]
[1730787174142,6.2328,160.44,160.42,11.84650851]
[1730787174555,20.0,160.45,160.42,11.84650851]
[1730787174748,26.2324,160.45,160.42,11.84650851]
[1730787175757,26.2324,160.45,160.39,6.5436675]
[1730787175758,26.2324,160.45,160.41,11.84650851]
[1730787181257,26.2324,160.45,160.42,11.84650851]
[1730787181462,6.2324,160.45,160.43,11.84650851]
[1730787181657,6.2324,160.45,160.44,11.84650851]
[1730787182351,6.2324,160.45,160.43,11.84650851]
[1730787183148,6.2324,160.45,160.4,15.4563]
[1730787183473,6.2324,160.45,160.41,11.84650851]
[1730787184658,6.2324,160.45,160.42,11.84650851]
[1730787188756,6.2324,160.45,160.43,11.84650851]
[1730787189374,6.2324,160.45,160.4,15.4563]
[1730787189576,6.2324,160.45,160.42,11.84650851]
[1730787190062,6.2324,160.45,160.43,11.84650851]
[1730787190266,6.2324,160.45,160.44,11.84650851]
[1730787190451,6.2316,160.47,160.44,11.84650851]
[1730787190657,6.2316,160.47,160.45,11.84650851]
[1730787192781,6.2316,160.47,160.46,11.84650851]
[1730787193769,6.2309,160.49,160.46,11.84650851]
[1730787199190,6.2309,160.49,160.47,11.84650851]
[1730787199486,6.2309,160.49,160.46,11.84650851]
[1730787201187,70.0,160.52,160.48,11.84650851]
[1730787201385,70.0,160.52,160.49,11.84650851]
[1730787204294,70.0,160.52,160.48,11.84650851]
[1730787205468,6.2301,160.51,160.48,11.84650851]
[1730787205670,70.0,160.52,160.49,11.84650851]
[1730787205994,6.2293,160.53,160.5,11.84650851]
[1730787206198,70.0,160.5,160.42,6.2335]
[1730787206494,70.0,160.5,160.44,11.84650851]
[1730787206495,11.84650851,160.49,160.44,11.84650851]
[1730787206793,81.84650851,160.5,160.45,11.84650851]
[1730787207178,6.2309,160.49,160.45,11.84650851]
[1730787210226,18.07740851,160.49,160.42,21.8173]
[1730787210374,18.07740851,160.49,160.44,11.84650851]
[1730787211594,6.2309,160.49,160.44,11.84650851]
[1730787211792,70.0,160.48,160.44,11.84650851]
[1730787212577,6.2316,160.47,160.44,11.84650851]
[1730787215002,6.2316,160.47,160.45,11.84650851]
[1730787217499,6.2316,160.47,160.44,11.84650851]
[1730787217719,6.2316,160.47,160.45,11.84650851]
[1730787218704,6.2316,160.47,160.42,21.8174]
[1730787219205,6.2316,160.47,160.44,11.84650851]
[1730787222585,6.2316,160.47,160.42,21.8174]
[1730787222892,6.2316,160.47,160.44,11.84650851]
[1730787223906,6.2316,160.47,160.42,21.8174]
[1730787224210,6.2316,160.47,160.45,11.84650851]
[1730787224911,6.2309,160.49,160.46,11.84650851]
[1730787225709,6.2309,160.49,160.47,11.84650851]
[1730787228008,6.2301,160.51,160.47,11.84650851]
[1730787228188,6.2301,160.51,160.48,11.84650851]
[1730787229794,6.2301,160.51,160.45,15.5811]
[1730787229997,6.2301,160.51,160.47,11.84650851]
[1730787230710,18.07660851,160.51,160.46,11.84650851]
[1730787231620,6.2301,160.51,160.48,11.84650851]
[1730787232408,6.2289,160.54,160.5,11.84650851]
[1730787232604,6.2289,160.54,160.52,11.84650851]
[1730787232791,6.2289,160.54,160.53,11.84650851]
[1730787233188,70.0,160.5,160.44,6.2328]
[1730787233489,70.0,160.52,160.47,11.84650851]
[1730787233697,70.0,160.52,160.48,11.84650851]
[1730787233912,70.0,160.52,160.47,11.84650851]
[1730787235518,81.84650851,160.52,160.47,11.84650851]
[1730787236420,70.0,160.5,160.46,11.84650851]
[1730787237220,70.0,160.5,160.39,0.3090675]
[1730787237221,70.0,160.43,160.39,0.3090675]
[1730787237418,70.0,160.43,160.39,12.15557601]
[1730787238524,70.0,160.43,160.39,0.3090675]
[1730787238525,6.2336,160.42,160.39,0.3090675]
[1730787238823,6.2336,160.42,160.39,12.15557601]
[1730787238996,6.2336,160.42,160.39,0.3090675]
[1730787239200,6.2336,160.42,160.39,12.15557601]
[1730787239397,81.84650851,160.4,160.39,0.3090675]
[1730787239702,70.0,160.4,160.39,0.3090675]
[1730787240712,76.2344,160.4,160.39,0.3090675]
[1730787241113,6.2344,160.4,160.39,0.3090675]
[1730787242753,6.234,160.41,160.39,0.3090675]
[1730787244339,6.234,160.41,160.39,0.3090675]
[1730787249913,6.2332,160.43,160.4,11.84650851]
[1730787251018,70.0,160.44,160.4,11.84650851]
[1730787251339,76.2329,160.44,160.41,11.84650851]
[1730787251640,76.2329,160.44,160.4,11.84650851]
[1730787254021,76.2329,160.44,160.41,11.84650851]
[1730787254831,18.04600851,160.46,160.42,11.84650851]
[1730787254832,6.2324,160.45,160.42,11.84650851]
[1730787259955,6.2324,160.45,160.43,11.84650851]
[1730787260642,6.2324,160.45,160.42,11.84650851]
[1730787264032,6.2324,160.45,160.39,0.3090675]
[1730787264232,6.2324,160.45,160.41,11.84650851]
[1730787264628,6.2324,160.45,160.42,11.84650851]
[1730787265534,6.2324,160.45,160.41,11.84650851]
[1730787267539,6.2324,160.45,160.4,11.84650851]
[1730787267749,70.0,160.44,160.39,0.3090675]
[1730787267935,70.0,160.44,160.4,11.84650851]
[1730787268650,70.0,160.44,160.41,11.84650851]
[1730787270268,6.2332,160.43,160.41,11.84650851]
[1730787276554,18.07970851,160.43,160.39,0.3090675]
[1730787276870,11.84650851,160.41,160.39,0.3090675]
[1730787277174,70.0,160.42,160.39,0.3090675]
[1730787278046,81.84650851,160.42,160.39,0.3090675]
[1730787278960,6.234,160.41,160.39,0.3090675]
[1730787279681,6.234,160.41,160.4,11.84650851]
[1730787281467,6.2332,160.43,160.4,11.84650851]
[1730787281959,6.2332,160.43,160.41,11.84650851]
[1730787282159,6.2332,160.43,160.4,11.84650851]
[1730787282881,6.2332,160.43,160.41,11.84650851]
[1730787284089,6.2332,160.43,160.4,11.84650851]
[1730787284784,6.2332,160.43,160.41,11.84650851]
[1730787286173,20.0,160.44,160.41,11.84650851]
[1730787286468,90.0,160.44,160.39,0.3090675]
[1730787286678,90.0,160.44,160.4,11.84650851]
[1730787287554,6.2332,160.43,160.4,11.84650851]
[1730787289765,6.2332,160.43,160.41,11.84650851]
[1730787295266,21.8144,160.45,160.41,11.84650851]
[1730787296865,21.8144,160.45,160.41,23.776884]
[1730787297473,6.2324,160.45,160.41,35.62339251]
[1730787298980,6.2324,160.45,160.43,35.62339251]
[1730787299180,6.2324,160.45,160.43,11.84650851]
[1730787300466,6.2324,160.45,160.4,23.776884]
[1730787300667,6.2324,160.45,160.43,23.776884]
[1730787300968,6.2324,160.45,160.43,35.62339251]
[1730787301482,20.0,160.46,160.43,35.62339251]
[1730787301885,20.0,160.46,160.43,23.776884]
[1730787302691,6.2324,160.45,160.43,23.776884]
[1730787303071,6.2324,160.45,160.4,11.84650851]
[1730787303268,6.2324,160.45,160.42,23.776884]
[1730787303992,81.84650851,160.44,160.39,0.3090675]
[1730787304193,81.84650851,160.44,160.39,24.0859515]
[1730787304492,6.2332,160.43,160.39,24.0859515]
[1730787304671,6.2332,160.43,160.39,35.93246001]
[1730787305687,6.2332,160.43,160.4,11.84650851]
[1730787305883,6.2332,160.43,160.41,23.776884]
[1730787307065,6.2332,160.43,160.41,35.62339251]
[1730787307992,15.5811,160.45,160.42,11.84650851]
[1730787307993,6.2324,160.45,160.42,11.84650851]
[1730787308175,6.2324,160.45,160.43,23.776884]
[1730787308381,6.2324,160.45,160.43,35.62339251]
[1730787310284,6.2324,160.45,160.43,23.776884]
[1730787311288,70.0,160.44,160.39,0.3090675]
[1730787311674,70.0,160.44,160.41,23.776884]
[1730787313576,6.2332,160.43,160.41,23.776884]
[1730787313896,6.2332,160.43,160.41,35.62339251]
[1730787315317,70.0,160.46,160.41,35.62339251]
[1730787315506,6.2324,160.45,160.41,35.62339251]
[1730787316877,6.2324,160.45,160.41,23.776884]
[1730787317500,6.2324,160.45,160.41,35.62339251]
[1730787319802,6.2324,160.45,160.4,23.776884]
[1730787320102,6.2324,160.45,160.42,23.776884]
[1730787320502,6.2324,160.45,160.42,35.62339251]
[1730787321409,6.2324,160.45,160.42,23.776884]
[1730787322899,6.2324,160.45,160.41,23.776884]
[1730787325002,6.2324,160.45,160.41,35.62339251]
[1730787327113,70.0,160.44,160.41,23.776884]
[1730787327293,70.0,160.44,160.4,23.776884]
[1730787327799,70.0,160.42,160.39,0.3090675]
[1730787329103,70.0,160.42,160.39,24.0859515]
[1730787329104,6.234,160.41,160.39,24.0859515]
[1730787330209,70.0,160.4,160.39,0.3090675]
[1730787332180,76.2344,160.4,160.39,0.3090675]
[1730787336511,88.08090851,160.4,160.39,0.3090675]
[1730787337207,76.2344,160.4,160.39,0.3090675]
[1730787337590,88.08090851,160.4,160.39,0.3090675]
[1730787339796,76.2344,160.4,160.39,0.3090675]
[1730787340714,76.2344,160.4,160.31,12.15557601]
[1730787340715,70.0,160.34,160.31,12.15557601]
[1730787341003,70.0,160.36,160.32,11.84650851]
[1730787341206,6.2363,160.35,160.32,11.84650851]
[1730787341512,6.2363,160.35,160.31,0.3090675]
[1730787341811,6.2355,160.37,160.34,35.62339251]
[1730787342318,6.2355,160.37,160.36,23.776884]
[1730787342504,6.2348,160.39,160.36,23.776884]
[1730787342805,6.2348,160.39,160.36,35.62339251]
[1730787345408,6.2348,160.39,160.36,23.776884]
[1730787346985,70.0,160.38,160.36,23.776884]
[1730787347189,70.0,160.38,160.35,23.776884]
[1730787349298,6.2355,160.37,160.35,23.776884]
[1730787358295,70.0,160.36,160.31,0.3090675]
[1730787358505,70.0,160.36,160.32,11.84650851]
[1730787358718,70.0,160.36,160.33,23.776884]
[1730787359611,6.2363,160.35,160.33,23.776884]
[1730787365206,6.2359,160.37,160.35,23.776884]
[1730787365394,6.2359,160.37,160.35,35.62339251]
[1730787365602,6.2359,160.37,160.35,23.776884]
[1730787366726,6.2359,160.37,160.34,23.776884]
[1730787367099,6.2359,160.37,160.34,35.62339251]
[1730787368329,6.2359,160.37,160.34,23.776884]
[1730787368625,6.2359,160.37,160.34,35.62339251]
[1730787372410,11.84650851,160.4,160.37,23.776884]
[1730787372411,6.2351,160.39,160.37,23.776884]
[1730787378109,6.2351,160.39,160.37,35.62339251]
[1730787378931,6.2351,160.39,160.37,23.776884]
[1730787382321,6.2342,160.41,160.39,23.776884]
[1730787382610,6.2342,160.41,160.4,23.776884]
[1730787383634,76.2342,160.41,160.39,23.776884]
[1730787383934,76.2342,160.41,160.38,23.776884]
[1730787387631,88.08070851,160.41,160.38,23.776884]
[1730787388343,70.0,160.38,160.33,15.6593]
[1730787388529,70.0,160.38,160.34,11.84650851]
[1730787389229,70.0,160.38,160.35,11.84650851]
[1730787389742,6.2355,160.37,160.36,23.776884]
[1730787391137,6.2348,160.39,160.36,35.62339251]
[1730787391322,6.2348,160.39,160.36,23.776884]
[1730787391529,6.2348,160.39,160.36,35.62339251]
[1730787392419,6.2355,160.37,160.36,23.776884]
[1730787393646,11.84650851,160.4,160.36,23.776884]
[1730787393647,6.2348,160.39,160.36,35.62339251]
[1730787396442,6.2348,160.39,160.36,23.776884]
[1730787398239,6.2348,160.39,160.36,35.62339251]
[1730787400647,6.2348,160.39,160.36,23.776884]
[1730787401332,6.2348,160.39,160.35,23.776884]
[1730787402358,6.2348,160.39,160.36,23.776884]
[1730787404566,70.0,160.36,160.32,11.84650851]
[1730787404848,6.2363,160.35,160.32,11.84650851]
[1730787405755,6.2363,160.35,160.33,23.776884]
[1730787416361,70.0,160.34,160.32,23.776884]
[1730787417656,6.2363,160.35,160.33,11.84650851]
[1730787417954,70.0,160.34,160.33,23.776884]
[1730787418138,76.2367,160.34,160.33,23.776884]
[1730787421349,6.2367,160.34,160.33,23.776884]
[1730787421768,6.2367,160.34,160.33,35.62339251]
[1730787422459,6.2364,160.35,160.34,23.776884]
[1730787423250,6.2364,160.35,160.33,23.776884]
[1730787428282,6.2364,160.35,160.33,35.62339251]
[1730787430983,6.2355,160.37,160.35,23.776884]
[1730787431171,6.2355,160.37,160.35,35.62339251]
[1730787432269,97.43290851,160.4,160.35,35.62339251]
[1730787432470,6.2348,160.39,160.37,23.776884]
[1730787432684,6.234,160.41,160.39,23.776884]
[1730787432864,6.234,160.41,160.39,35.62339251]
[1730787433477,6.234,160.41,160.39,23.776884]
[1730787434169,6.2332,160.43,160.4,35.62339251]
[1730787434473,6.2332,160.43,160.42,23.776884]
[1730787437364,6.2332,160.43,160.41,23.776884]
[1730787440663,6.2332,160.43,160.41,35.62339251]
[1730787442481,6.2332,160.43,160.41,23.776884]
[1730787451562,6.2332,160.43,160.41,35.62339251]
[1730787452162,6.2332,160.43,160.41,23.776884]
[1730787461882,6.2332,160.43,160.41,35.62339251]
[1730787463374,6.2324,160.45,160.41,35.62339251]
[1730787463575,6.2324,160.45,160.43,23.776884]
[1730787464888,6.2324,160.45,160.43,35.62339251]
[1730787465070,6.2324,160.45,160.44,11.84650851]
[1730787465271,6.2324,160.45,160.44,35.62339251]
[1730787465983,6.2324,160.45,160.44,23.776884]
[1730787467089,21.8115,160.47,160.45,23.776884]
[1730787467293,21.8115,160.47,160.44,23.776884]
[1730787467589,6.2316,160.47,160.44,23.776884]
[1730787468798,6.2316,160.47,160.44,35.62339251]
[1730787469095,6.2316,160.47,160.44,23.776884]
[1730787470601,70.0,160.46,160.44,23.776884]
[1730787470896,81.84650851,160.46,160.4,11.84650851]
[1730787471104,81.84650851,160.46,160.41,11.84650851]
[1730787471301,11.84650851,160.45,160.4,11.84650851]
[1730787471595,70.0,160.44,160.4,11.84650851]
[1730787472379,70.0,160.44,160.41,23.776884]
[1730787473896,6.2332,160.43,160.41,23.776884]
[1730787476587,70.0,160.42,160.41,23.776884]
[1730787476790,70.0,160.42,160.36,11.84650851]
[1730787476791,81.84650851,160.42,160.36,11.84650851]
[1730787476986,11.84650851,160.41,160.36,11.84650851]
[1730787478289,81.84650851,160.42,160.37,35.62339251]
[1730787478885,6.234,160.41,160.37,35.62339251]
[1730787483796,6.234,160.41,160.39,23.776884]
[1730787484913,70.0,160.4,160.39,23.776884]
[1730787485114,70.0,160.4,160.38,23.776884]
[1730787485793,6.2348,160.39,160.38,23.776884]
[1730787488103,6.2348,160.39,160.38,35.62339251]
[1730787488300,6.234,160.41,160.38,35.62339251]
[1730787488614,6.234,160.41,160.4,11.84650851]
[1730787488808,6.234,160.41,160.4,35.62339251]
[1730787490122,70.0,160.44,160.41,23.776884]
[1730787490292,6.2332,160.43,160.41,35.62339251]
[1730787492727,6.2332,160.43,160.41,23.776884]
[1730787494301,6.2332,160.43,160.4,23.776884]
[1730787494518,6.2332,160.43,160.4,35.62339251]
[1730787499432,6.2332,160.43,160.41,11.84650851]
[1730787499619,6.2332,160.43,160.42,11.84650851]
[1730787499814,6.2332,160.43,160.42,35.62339251]
[1730787500617,6.2324,160.45,160.43,23.776884]
[1730787501633,6.2324,160.45,160.43,35.62339251]
[1730787502022,11.84650851,160.48,160.45,23.776884]
[1730787502023,6.2316,160.47,160.45,23.776884]
[1730787502326,6.2316,160.47,160.45,35.62339251]
[1730787503309,6.2316,160.47,160.45,23.776884]
[1730787503914,6.2309,160.49,160.47,23.776884]
[1730787504121,70.0,160.52,160.49,23.776884]
[1730787504322,21.14108022,160.54,160.51,35.62339251]
[1730787504622,6.2285,160.55,160.53,23.776884]
[1730787504929,6.2285,160.55,160.53,35.62339251]
[1730787505443,6.2285,160.55,160.54,35.62339251]
[1730787506813,6.2285,160.55,160.54,23.776884]
[1730787507616,6.2285,160.55,160.54,35.62339251]
[1730787508215,3.27129503,160.56,160.55,23.776884]
[1730787508414,9.49949503,160.56,160.55,23.776884]
[1730787509313,9.49949503,160.56,160.54,23.776884]
[1730787511028,79.49949503,160.56,160.54,23.776884]
[1730787511221,91.34600354,160.56,160.52,23.776884]
[1730787511537,79.49949503,160.56,160.52,35.62339251]
[1730787512841,106.91650354,160.56,160.52,23.776884]
[1730787513337,70.0,160.54,160.51,23.776884]
[1730787513542,81.84650851,160.54,160.5,23.776884]
[1730787515219,6.2293,160.53,160.5,23.776884]
[1730787516440,6.2293,160.53,160.5,35.62339251]
[1730787516739,6.2293,160.53,160.52,23.776884]
[1730787518835,6.2293,160.53,160.51,23.776884]
[1730787519339,6.2293,160.53,160.51,35.62339251]
[1730787519534,6.2285,160.55,160.53,23.776884]
[1730787521049,70.0,160.54,160.53,23.776884]
[1730787522733,76.2289,160.54,160.53,23.776884]
[1730787523346,88.07540851,160.54,160.53,23.776884]
[1730787524223,76.2289,160.54,160.53,23.776884]
[1730787527418,76.2289,160.54,160.52,23.776884]
[1730787528019,6.2289,160.54,160.52,35.62339251]
[1730787528646,22.5,160.53,160.52,35.62339251]
[1730787529752,70.0,160.49,160.42,6.2726]
[1730787530042,81.84650851,160.49,160.44,11.84650851]
[1730787530539,70.0,160.49,160.44,11.84650851]
[1730787530924,6.2313,160.48,160.44,11.84650851]
[1730787531123,6.2313,160.48,160.45,11.84650851]
[1730787531341,6.2313,160.48,160.46,23.776884]
[1730787533426,20.0,160.47,160.36,15.1389]
[1730787533741,11.84650851,160.46,160.41,11.84650851]
[1730787534249,81.84650851,160.47,160.41,11.84650851]
[1730787534847,6.232,160.46,160.42,23.776884]
[1730787535368,6.232,160.46,160.42,35.62339251]
[1730787537566,6.232,160.46,160.42,23.776884]
[1730787538162,18.07850851,160.46,160.42,23.776884]
[1730787538341,81.84650851,160.45,160.41,23.776884]
[1730787538749,81.84650851,160.45,160.4,23.776884]
[1730787539857,81.84650851,160.45,160.4,35.62339251]
[1730787540061,70.0,160.45,160.4,35.62339251]
[1730787540262,6.2328,160.44,160.42,23.776884]
[1730787540451,6.2328,160.44,160.43,11.84650851]
[1730787540651,6.2328,160.44,160.43,35.62339251]
[1730787542167,6.232,160.46,160.44,23.776884]
[1730787543942,6.232,160.46,160.44,35.62339251]
[1730787544365,6.232,160.46,160.44,23.776884]
[1730787544543,6.232,160.46,160.43,23.776884]
[1730787544745,6.232,160.46,160.43,35.62339251]
[1730787544945,6.232,160.46,160.44,11.84650851]
[1730787545248,6.232,160.46,160.45,23.776884]
[1730787545863,6.2313,160.48,160.45,35.62339251]
[1730787546460,6.2313,160.48,160.45,23.776884]
[1730787546461,18.07780851,160.48,160.45,23.776884]
[1730787546670,18.07780851,160.48,160.44,23.776884]
[1730787547263,6.2313,160.48,160.44,35.62339251]
[1730787550073,6.2313,160.48,160.43,35.62339251]
[1730787550569,70.0,160.47,160.43,23.776884]
[1730787550945,70.0,160.47,160.42,11.84650851]
[1730787551867,70.0,160.41,160.32,37.4827]
[1730787552165,81.84650851,160.41,160.35,11.84650851]
[1730787552968,6.2344,160.4,160.35,11.84650851]
[1730787553146,6.2344,160.4,160.36,23.776884]
[1730787553345,6.2344,160.4,160.37,11.84650851]
[1730787553545,70.0,160.38,160.31,0.3090675]
[1730787553747,70.0,160.38,160.33,11.84650851]
[1730787554368,70.0,160.38,160.34,11.84650851]
[1730787554555,6.2355,160.37,160.34,11.84650851]
[1730787555496,6.2344,160.4,160.36,11.84650851]
[1730787556175,6.2344,160.4,160.36,23.776884]
[1730787558484,70.0,160.38,160.36,23.776884]
[1730787559771,6.2355,160.37,160.36,23.776884]
[1730787559971,6.2355,160.37,160.32,11.84650851]
[1730787561375,6.2355,160.37,160.33,35.62339251]
[1730787562872,6.2355,160.37,160.33,23.776884]
[1730787565280,6.2355,160.37,160.33,35.62339251]
[1730787565583,6.2355,160.37,160.34,11.84650851]
[1730787565757,6.2355,160.37,160.35,23.776884]
[1730787566157,6.2355,160.37,160.33,23.776884]
[1730787566376,6.2355,160.37,160.33,35.62339251]
[1730787569959,70.0,160.36,160.33,23.776884]
[1730787570679,6.2363,160.35,160.33,23.776884]
[1730787573576,6.2363,160.35,160.33,23.276884]
[1730787574785,6.2363,160.35,160.33,35.12339251]
[1730787575282,6.2363,160.35,160.33,23.276884]
[1730787575488,6.2363,160.35,160.33,35.12339251]
[1730787575970,6.2363,160.35,160.33,23.276884]
[1730787593697,70.0,160.34,160.33,23.276884]
[1730787593906,76.2367,160.34,160.33,23.276884]
[1730787598306,6.2367,160.34,160.33,35.12339251]
[1730787600007,6.2363,160.35,160.33,35.12339251]
[1730787600492,6.2363,160.35,160.33,23.276884]
[1730787604604,6.2363,160.35,160.33,35.12339251]
[1730787605113,6.2363,160.35,160.33,23.276884]
[1730787616111,70.0,160.34,160.32,23.776884]
[1730787617712,70.0,160.34,160.31,24.0859515]
[1730787618034,6.2371,160.33,160.31,24.0859515]
[1730787618892,6.2371,160.33,160.31,35.93246001]
[1730787619807,6.2371,160.33,160.32,35.62339251]
[1730787620894,15.5908,160.35,160.33,23.776884]
[1730787621095,21.8271,160.35,160.33,23.776884]
[1730787626728,21.8271,160.35,160.33,35.62339251]
[1730787628021,21.8271,160.35,160.33,23.776884]
[1730787633035,21.8271,160.35,160.33,35.62339251]
[1730787633528,21.8271,160.35,160.33,23.776884]
[1730787639326,6.2363,160.35,160.34,35.62339251]
[1730787640915,15.5872,160.39,160.35,23.776884]
[1730787641120,21.822,160.39,160.38,23.776884]